Cogmind - Beta 16.1 @@@ ROGUE MODE // 2026.04.19 @ 08:31:00 Player: Shimejimeji Result: Destroyed by 6E-3Q7(R) with Subdweller Laser Performance ------------- Evolutions (0) 0 Regions Visited (2) 400 Robots Destroyed (58) 290 Value Destroyed (1510) 1510 Prototype IDs (17) 340 Alien Tech Used (0) 0 Bonus (0) 0 TOTAL SCORE: 2540 Bonus ------- None Cogmind --------- Core Integrity 0/250 Matter 2/300 Energy 265/265 System Corruption 5% Temperature Cool (6) Movement Walking (330) Ox3 Location -10/Subcaves Parts ------- > --- POWER (1) -------- Improved Ion Engine (fused) > --- PROPULSION (2) --- Aluminum Leg > --- UTILITY (2) ------ Scrap Shield > --- WEAPON (2) ------- Subdweller Shrapnel Launcher > --- INVENTORY (5) ---- Humpback Makeshift Light Armor Plating Beam Rifle Peak State ------------ > --- POWER ------------ Improved Ion Engine > --- PROPULSION ------- Aluminum Leg Aluminum Leg > --- UTILITY ---------- Large Storage Unit Makeshift Light Armor Plating > --- WEAPON ----------- Slug Cannon Ripper > --- INVENTORY -------- Light Ion Engine Wheel Humpback Seismic Detector Scrap Shield Hacking Suite Beam Rifle Subdweller Beam Cannon Subdweller Beam Cannon Battle Rifle Subdweller Machine Gun Battle Cannon Subdweller Shrapnel Launcher [Rating: 19] Favorites ----------- Power Improved Ion Engine Engine Improved Ion Engine Propulsion Aluminum Leg Treads Light Treads Leg Aluminum Leg Wheel Wheel Utility Seismic Detector Device Seismic Detector Storage Large Storage Unit Protection Makeshift Light Armor Plating Weapon Autogun Energy Gun Beam Rifle Energy Cannon Beam Cannon Ballistic Gun Autogun Ballistic Cannon Battle Cannon Launcher Subdweller Shrapnel Launcher Special Weapon Mining Laser Impact Weapon Hammer Slashing Weapon Ripper Piercing Weapon Makeshift Spear Build | -11 -10 -10 ------- Run | Yrd Mat Sub Slots Evolved . | . . . Power . | . . . Propulsion . | . . . Utility . | . . . Weapon . | . . . Parts Attached 52 | 7 15 30 Power 5 | 1 1 3 Engine 5 | 1 1 3 Core . | . . . Reactor . | . . . Propulsion 11 | 2 4 5 Treads 6 | . 2 4 Leg 4 | 2 2 . Wheel 1 | . . 1 Hover . | . . . Flight . | . . . Utility 10 | 2 4 4 Device 3 | 1 1 1 Storage 4 | 1 2 1 Processor . | . . . Hackware . | . . . Protection 3 | . 1 2 Artifact . | . . . Weapon 26 | 2 6 18 Energy Gun 2 | . . 2 Energy Cannon 6 | . 2 4 Ballistic Gun 10 | 2 2 6 Ballistic Cannon 3 | . . 3 Launcher 1 | . . 1 Special Weapon 1 | . 1 . Impact Weapon 1 | . 1 . Slashing Weapon 1 | . . 1 Piercing Weapon 1 | . . 1 Special Melee Weapon . | . . . Unidentified Prototypes . | . . . Parts Lost 8 | . . 8 Power 2 | . . 2 Propulsion 4 | . . 4 Utility 1 | . . 1 Weapon 1 | . . 1 Highest Loss Streak 1 | . . 1 To Critical Strikes 1 | . . 1 Average Backups 12 | 3 10 13 Power 1 | . 1 1 Propulsion 2 | 1 3 2 Utility 2 | . 2 3 Weapon 5 | . 3 6 Tool/Special . | . . . Unused Backups 17 | . 6 11 Power 3 | . 2 1 Propulsion 4 | . 1 3 Utility 4 | . . 4 Weapon 6 | . 3 3 Tool/Special . | . . . Average Slot Usage (%) 99 | . 99 99 Engine 13 | . 13 14 Treads 12 | . 5 16 Leg 15 | . 22 11 Device 12 | . 13 11 Storage 13 | . 14 13 Protection 1 | . . 2 Energy Gun 1 | . . 2 Energy Cannon 5 | . . 8 Ballistic Gun 17 | . 26 13 Ballistic Cannon 1 | . . 1 Peak Build Rating 19 | 7 12 19 Average Rating 12 | 5 10 13 On Entrance 5 | . 7 10 Avg Prop Armor Cover (%) 6 | . . 6 Naked Turns . | . . . Heaviest Build 44 | 13 34 44 Greatest Support 40 | 20 40 40 Greatest Overweight (x) 4 | 1 1 4 Average Overweight (x) . | . . . Largest Inventory Capacity 15 | 8 15 15 Average Capacity 13 | 7 10 14 Most Carried 15 | 6 15 15 Average Carried 13 | 3 10 14 Final Capacity 15 | 8 15 5 Final Carried 15 | 6 15 4 Class Distribution -------------------- 97% | Mutant Dominant Class ---------------- Mutant | -10/Materials Mutant | -10/Subcaves Resources | -11 -10 -10 ----------- Run | Yrd Mat Sub Matter Collected 2570 | 267 872 1431 Remotely . | . . . Salvage Created 1886 | 145 852 889 Parts 119 | 14 47 58 Haulers Intercepted 2 | . 2 . Recyclers Shooed 1 | . 1 . Parts Field Recycled . | . . . Retrieved Matter . | . . . Parts Self-Destructed 21 | . . 21 Prevented . | . . . Parts Restored . | . . . Kills | -11 -10 -10 ------- Run | Yrd Mat Sub Combat Hostiles Destroyed 41 | . 14 27 Melee 2 | . . 2 Guns 23 | . 14 9 Cannons 12 | . . 12 AOE 4 | . . 4 Classes Destroyed 10 | 2 5 3 Tunneler 4 | 4 . . Hauler 2 | . 2 . Recycler 4 | 1 3 . Operator 2 | . 2 . Turret 2 | . . 2 Watcher 3 | . 3 . Swarmer 10 | . 6 4 Grunt 9 | . 8 1 Sentry 1 | . . 1 Subdweller 21 | . . 21 Best Kill Streak 6 | 3 6 4 Combat Bots Only 5 | . 5 4 Max Kills in Single Turn 3 | 1 2 3 Gunslinging . | . . . Exploded 3 | . . 3 Melee 1 | . . 1 Uniques/NPCs Destroyed . | . . . Combat | -11 -10 -10 -------- Run | Yrd Mat Sub Hostile Shots Fired 219 | . 30 189 Missed 73 | . 10 63 Hits 146 | . 20 126 Projectile 146 | . 20 126 Critical Strikes 1 | . . 1 Damage Taken 2422 | . 195 2227 Core 266 | . 37 229 Absorbed by Shields . | . . . Regen/Repaired (Parts) 30 | . 30 . Core Remaining (%) 100 | 100 . . Volleys Fired 190 | 9 77 104 Largest 2 | 2 2 2 Hottest 140 | 40 120 140 Shots Fired 345 | 18 144 183 Gun 222 | 18 122 82 Cannon 101 | . 12 89 Launcher 12 | . . 12 Special 10 | . 10 . Kinetic 240 | 18 122 100 Thermal 105 | . 22 83 Explosive . | . . . Electromagnetic . | . . . Robot Hit Streak 15 | 9 9 15 Robot Miss Streak 5 | 2 5 3 Penetration Max . | . . . Secondary Targets 3 | . 3 . Max Gunslinging Chain 1 | . 1 . Shots Hit Robots 202 | 11 67 124 Core Hits 84 | 6 30 48 Critical Kills . | . . . Critical Parts Destroyed 1 | . . 1 Critical Strikes 5 | . . 5 Destroy 1 | . . 1 Blast 2 | . . 2 Sever 1 | . . 1 Impale 1 | . . 1 Melee Attacks 46 | . 9 37 Impact 9 | . 9 . Slashing 18 | . . 18 Piercing 19 | . . 19 Sneak Attacks . | . . . Combat Hostiles . | . . . Follow-up Attacks . | . . . Damage Inflicted 4281 | 145 1035 3101 Guns 2279 | 145 1035 1099 Cannons 1200 | . . 1200 Explosions 616 | . . 616 Melee 186 | . . 186 Ramming . | . . . Kinetic 2936 | 145 1035 1756 Thermal 1159 | . . 1159 Explosive . | . . . Electromagnetic . | . . . Impact . | . . . Slashing 72 | . . 72 Piercing 114 | . . 114 Highest Corruption 5 | . 5 5 Average Corruption 4 | . 2 5 Corruption Purged . | . . . Corruption Blocked . | . . . Effects 215 | . 50 165 Message Errors 49 | . 12 37 Matter Fused 58 | . 19 39 Heat Flow Errors 23 | . 7 16 Energy Discharges 28 | . 4 24 Parts Rejected 1 | . . 1 Parts Fused 2 | . . 2 Data Loss (minor) 24 | . 3 21 Data Loss (major) 10 | . 3 7 Misfires 7 | . 1 6 Alerts 10 | . 1 9 Weapon Failures 3 | . . 3 Overload Shots . | . . . Overflow Damage 46 | . . 46 Projectiles . | . . . Explosions 46 | . . 46 Melee . | . . . Knockbacks . | . . . Impact . | . . . Kinetic . | . . . Secondary . | . . . Self-Inflicted Damage 115 | . . 115 Shots 3 | . . 3 Rammed . | . . . Targets Rammed . | . . . Kicked . | . . . Crushed . | . . . Highest Temperature 315 | . 315 256 Average Temperature 66 | . 58 75 Received Heat Transfer 420 | . 75 345 Effects 1 | . 1 . Energy Bleed 1 | . 1 . Siege Activations . | . . . Martial Activations . | . . . Shielding Activations . | . . . Robots Disrupted . | . . . Combat Hostiles . | . . . Robots Corrupted . | . . . Combat Hostiles . | . . . Parts Fried . | . . . Impact Corruptions . | . . . Robots Melted . | . . . Combat Hostiles . | . . . Parts Melted 5 | . . 5 Heat Transferred 1952 | . . 1952 Parts Sabotaged . | . . . Parts Stolen . | . . . Parts Stripped . | . . . Power Chain Reactions . | . . . Alert | -11 -10 -10 ------- Run | Yrd Mat Sub Maximum Alert Level . | . . . Low Security (%) 100 | 100 100 . Level 1 . | . . . Level 2 . | . . . Level 3 . | . . . Level 4 . | . . . Level 5 . | . . . High Security . | . . . Max Security . | . . . Peak Influence 138 | 10 138 . Initial . | . . . Average 45 | 2 47 . Influence Increases 768 | 25 453 290 Destroy 0b10 Robot/C 440 | . 280 160 Destroy 0b10 Robot/NC 70 | 25 45 . Destroy Leader 70 | . 60 10 Successful Hack 53 | . 53 . Destroy Structure 15 | . 15 . Lose Combat Pursuer 120 | . . 120 Influence Decreases 535 | 25 383 127 Entered New Map 34 | . . 34 Time Decay 481 | 25 383 73 Lost Part 20 | . . 20 Squads Dispatched 1 | . 1 . Investigation . | . . . Extermination . | . . . Reinforcement 1 | . 1 . Assault . | . . . Garrison . | . . . Intercept . | . . . Searches Triggered . | . . . Construction Impeded . | . . . Haulers Reinforced . | . . . Active Scanning Responses . | . . . Cargo Convoy Interrupts . | . . . Stealth | -11 -10 -10 --------- Run | Yrd Mat Sub Distress Signals 1 | . 1 . Communications Jammed . | . . . Distress Signals . | . . . Times Spotted 57 | . 25 32 Peak Tracking Total 6 | . 6 6 Tactical Retreats 5 | . . 5 Traps | -11 -10 -10 ------- Run | Yrd Mat Sub Traps Triggered 3 | . 3 . Indirectly . | . . . Trap Hack Attempts . | . . . Triggered . | . . . Disarmed . | . . . Reprogrammed . | . . . Reused . | . . . Traps Extracted . | . . . Installed . | . . . Triggered . | . . . Machines | -11 -10 -10 ---------- Run | Yrd Mat Sub Machines Disabled 3 | . . 3 Max in Single Turn 3 | . . 3 Machines Repaired . | . . . Machines Dismantled . | . . . Machines Sabotaged . | . . . Overloaded Fab Kills . | . . . Hacking | -11 -10 -10 --------- Run | Yrd Mat Sub Machines Accessed 14 | . 10 4 Terminals 7 | . 7 . Fabricators . | . . . Repair Stations 1 | . 1 . Recycling Units 2 | . 2 . Scanalyzers . | . . . Garrison Access . | . . . Total Hacks 32 | . 27 5 Successful 23 | . 18 5 Failed 8 | . 8 . Catastrophic 1 | . 1 . Database Lockouts 1 | . 1 . Manual 20 | . 20 . Terminals 21 | . 21 . Fabricators . | . . . Repair Stations 3 | . 3 . Recycling Units 3 | . 3 . Scanalyzers . | . . . Garrison Access . | . . . Terminal Hacks 12 | . 7 5 Record 3 | . . 3 Robot Analysis 1 | . 1 . Prototype ID Bank 2 | . 2 . Open Door 1 | . . 1 Terminal Index 1 | . 1 . Scanalyzer Index 1 | . 1 . Hauler Manifests 1 | . 1 . Registered Components 1 | . 1 . Proto ID Catalog 1 | . . 1 Fabricator Hacks . | . . . Repair Station Hacks 2 | . 2 . Scan Component 1 | . 1 . Repair 1 | . 1 . Recycling Unit Hacks 2 | . 2 . Retrieve Components 2 | . 2 . Scanalyzer . | . . . Garrison Access Hacks . | . . . Unauthorized Hacks 7 | . 7 . Terminals 6 | . 6 . Assimilate 3 | . 3 . Botnet 2 | . 2 . Operators 1 | . 1 . Fabricators . | . . . Repair Stations . | . . . Recycling Units 1 | . 1 . Reject 1 | . 1 . Scanalyzers . | . . . Garrison Access . | . . . Data Cores Recovered . | . . . Used . | . . . Hacking Detections 7 | . 7 . Full Trace Events 3 | . 3 . Feedback Events . | . . . Feedback Blocked . | . . . Robot Schematics Acquired . | . . . Robots Built . | . . . Authchips . | . . . Time . | . . . Total Robot Build Rating . | . . . Part Schematics Acquired . | . . . Parts Built . | . . . Authchips . | . . . Time . | . . . Total Part Build Rating . | . . . Part Studies Acquired . | . . . Parts Repaired 1 | . 1 . Time 32 | . 32 . Parts Recycled . | . . . Recycled Matter . | . . . Retrieved Matter . | . . . Retrieved Components 19 | . 19 . Parts Scanalyzed . | . . . Part Schematics Acquired . | . . . Parts Damaged . | . . . Bothacking | -11 -10 -10 ------------ Run | Yrd Mat Sub Used RIF Installer . | . . . Robots Hacked . | . . . Non-combat . | . . . Combat . | . . . Robot Hacks Applied . | . . . Relay Couplers Released . | . . . Fabnet Peak Effective % . | . . . Robots Rewired . | . . . Allies Hacked . | . . . Hacks Repelled . | . . . Allies | -11 -10 -10 -------- Run | Yrd Mat Sub Total Allies 1 | . 1 . Largest Group 1 | . 1 . Highest-Rated Group 10 | . 10 . Highest-Rated Ally 10 | . 10 . Total Orders . | . . . Ally Attacks . | . . . Total Damage . | . . . Kills . | . . . Allies Corrupted . | . . . Allies Melted . | . . . Intel | -11 -10 -10 ------- Run | Yrd Mat Sub Active Infowar (turns) 8312 | 50 3237 5025 Seismic 8312 | 50 3237 5025 Robot Analysis Total 1 | . 1 . Derelict Logs Recovered 2 | . . 2 Drone Launches . | . . . Drone Recoveries . | . . . Exploration | -11 -10 -10 ------------- Run | Yrd Mat Sub Turns Passed 9704 | 125 3262 6317 Spaces Moved 4738 | 71 1554 3113 Core 6 | 6 . . Treads 2204 | . 356 1848 Legs 2528 | 65 1198 1265 Wheels . | . . . Hover . | . . . Flight . | . . . Fastest Speed 50 | 50 120 160 Average Speed 173 | 116 171 175 Slowest Speed 400 | 120 190 400 Overloaded Moves . | . . . Propulsion Burnouts . | . . . Robots Hopped . | . . . Potential Cave-ins . | . . . Cave-ins Triggered . | . . . Exploration Rate (%) 66 | 4 99 95 Regions Visited 2 Branch Regions 1 Pre-discovered Areas . | . . . Known Exits Taken . | . . . Unknown Exits Taken 2 | 1 1 . Scrap Searched 14 | . . 14 Spaces Dug 22 | . 13 9 Terrain Destroyed 172 | . 13 159 Melee 7 | . 3 4 Projectile 20 | . 10 10 AOE 145 | . . 145 Terrain Rammed . | . . . Walls Destroyed . | . . . Machines Disabled . | . . . Actions | -11 -10 -10 --------- Run | Yrd Mat Sub Total 5804 | 92 1992 3720 Wait 617 | . 294 323 Move 4736 | 70 1553 3113 Hop . | . . . Pick Up 45 | 6 17 22 Fast Attach 12 | 7 2 3 Attach 11 | . . 11 Detach 3 | . . 3 Swap 101 | . 25 76 Drop 43 | . 15 28 Fire 190 | 9 77 104 Melee 46 | . 9 37 Ram . | . . . Kick . | . . . Crush . | . . . Escape Stasis . | . . . Rewire . | . . . Trap . | . . . Miscellaneous . | . . . Route ------- -11/Scrapyard -10/Materials (discovered 5 exits: [*Mat x3] / [*Min] / *Sub) -10/Subcaves (discovered 3 exits: [*Mat x2] / [*Rec]) History --------- Turn | Location | Event 2 | -11/Scrapyard | Met Revision 17 8 | -11/Scrapyard | Discovered new exit (range 15) 126 | -11/Scrapyard | Entered Materials 304 | -10/Materials | Build established: Mutant 393 | -10/Materials | Discovered new exit (range 8) 737 | -10/Materials | Discovered new exit (range 8) 853 | -10/Materials | Discovered new exit (range 13) 899 | -10/Materials | Central database locked down 1649 | -10/Materials | Discovered new exit (range 8) 1851 | -10/Materials | Discovered new exit (range 9) 2653 | -10/Materials | Repaired Imp. Ion Engine 3388 | -10/Materials | Entered Subcaves 3389 | -10/Subcaves | Approached by a straggling Scientist 3573 | -10/Subcaves | Disturbed a concealed Subdweller 4029 | -10/Subcaves | Visited Clippyterm 4033 | -10/Subcaves | Learned Factory fabricator intel 4867 | -10/Subcaves | Shifting Twisted Machinery released Sub. Monowheel 4904 | -10/Subcaves | Shifting Twisted Machinery released Sub. Laser 5007 | -10/Subcaves | Learned Materials security intel 5324 | -10/Subcaves | Disturbed a concealed Subdweller 5332 | -10/Subcaves | Disturbed a concealed Subdweller 5461 | -10/Subcaves | Disturbed a concealed Subdweller 5468 | -10/Subcaves | Core integrity fell below 50% 6081 | -10/Subcaves | Disturbed a concealed Subdweller 6232 | -10/Subcaves | Ambushed by Subdwellers from Twisted Machinery 6284 | -10/Subcaves | Discovered new exit (range 11) 6761 | -10/Subcaves | Shifting Twisted Machinery released Sub. Beam Cannon 6763 | -10/Subcaves | Shifting Twisted Machinery released Sub. Laser 7053 | -10/Subcaves | Core integrity fell below 20% 7188 | -10/Subcaves | Visited 4L-MR0's lab 7801 | -10/Subcaves | Ambushed by Subdweller buried in earth 7913 | -10/Subcaves | Discovered new exit (range 16) 7919 | -10/Subcaves | Learned Materials garrison access intel 8468 | -10/Subcaves | A swath of the cavern ceiling suddenly collapsed 8545 | -10/Subcaves | A swath of the cavern ceiling suddenly collapsed 9646 | -10/Subcaves | Discovered new exit (range 15) 9705 | -10/Subcaves | Destroyed by 6E-3Q7(R) with Subdweller Laser Last Messages --------------- 09512_ System corrupted: Heat flow error (+169). 09530_ System corrupted: Component data lost. 09562_ System corrupted: Energy discharge (-55). 09599_ System corrupted: Matter fused (-10). 09620_ Discarded Seismic Detector. 09626_ Dropped Lrg. Storage Unit. 09633_ Acquired Sub. Shrapnel Launcher. 09643_ YQHWBDR=&PF##B>5ZRRVGK3FYOUE2V1#Q1PR1 09646_ EXIT=FOUND 09656_ Machine disabled. 09656_ Destroyed Autobeam. 09656_ Autobeam Turret destroyed. 09664_ System corrupted: Component data lost. 09664_ 6E-3Q7(R): "THANKSYOU!" 09664_ Aluminum Leg destroyed. 09664_ Destroyed Aluminum Leg. 09667_ 3J-RRN(R): "ARGHSUB!" 09678_ Sub. Beam Cannon shoots sparks and powers down. 09680_ MXH6MR>N03URTW >QH, XDPU>I MSEHVXZ5HR 09695_ System corrupted: Broken Sub. Beam Cannon rejected. Map ----- +----------------------------------------------------+ | ### ######?##??? "#????????????????### "##?? | | ##?# # ## ## "# #???????????# "##? | | #??## < #???????????# #? | | #???# #?????????## ##? | | ????# ### ####?????????????????### ##?? | | ???# #?#######??????????????????????# ###? | | ???## ###?????????????????????????????## #? | | ????#####?????????????????????????????### #? | | ??????????????????????????????????????# ##? | | ?????????????????????????????????????## #?? | | ????????????????????????????????????## ## #?? | | ???????????????????????????????????## ### ### #?? | | ??????????????????????????????????## ### ?# ##? | | ??????????????????????????????????# ### #?## #? | | ??????????????????????????????????# # # #### ##? | | ??????????????????????????????????### ###### #? | | ????????????????????????????????????# # # #? | | ????????????????????????????????????# ## #? | | ??????????#####?????????????????????# ## #?##? | | ?????????? ????????????????????###### #???? | | ????????? ####???????????????###### ###?? | | ????????? ; #??###?????????# ## #?? | | ???????? ; ### ########### ### #?? | | ??????## ;; ## # ## ## #?? | | ####?# # %% #?? | | "#### # < R @ ## # ## # ## #?? | | ""# " # #### # ######## ### | | """""#?? ;; [] "### #????# # | | "#"###?? # ;;]]/ ## #???## ## | | ###"#?????" ???## ;=*] ####### ##???# ## | | ###"#?????????????###![""" ###??# ####### # | | #"#"#???????????????###### #### # #####"& # | | ""#"#??????????????????## # ## #??## ## | | "##?#??????????????????# ## #### ##? | | "#????????????????????## ## # ## ##?? | | " #????????????????????## # ######### #??? | | #???????????????????## ### #??????## #? | | #??????????????????## # #??????# " # | | ##??????#########??## # # #??????# " " ## | | ##??????##"" " #### ### #####??# """##? | | #???????# """ ""### ### ##?## ""##?? | | #???????# " " " ## ## ##?### ""#??? | | ????????#"" "" "^ ## "##??##""###? | | ????????### ""##" # "#????# #? | | ?????????###+##### ## ### ###### #? | | #????????#" "#?# #" #### ## # # #? | | #???###??#" "#?# ##### ### #? | | #### #??# ""#?# #### ##?# #? | | # #??# X"#?# #" ## ##??# ## #? | | #??#/ ""#?#####" ##???# #### ###? | +----------------------------------------------------+ Best States ------------- Heat Dissipation 25 Energy Generation 12 Energy Capacity 265 Matter Stores 300 Matter Capacity 300 Sight Range 16 Terrain Scan Density 10 Armor Coverage 800 Evasion (%) 55 Recoil Reduction 2 Item Schematics ----------------- None Robot Schematics ------------------ None Fabricated ------------ Nothing Repaired ---------- Imp. Ion Engine | 57% | -10/Materials Studied --------- None Alien Tech Used ----------------- None Achievements -------------- None Challenges ------------ None Game ------ Seed IntegrityAssemblySegregator Manual? 0 Play Time 01:25:38 Cumulative 28.8 hours Start 2026.04.19 @ 03:21:27 End 2026.04.19 @ 08:31:00 Sessions 1 Manual Loads 0 Difficulty Rogue Special Mode None Game No. 22 Rogue 22 Adventurer 0 Explorer 0 Win Type - Total 0 Types 0/0/0/0/0/0/0/0/0/0 Lore% 25 Gallery% 20 Achievement% 21 Wizard Run 0 Options --------- Layout 0 ASCII 0 Keyboard 1 Movement Arrows Keybinds 0 Fullscreen 2 Font 18/SmallcapsGlow Map View 76x50 Zoom Use 0% Tactical HUD 1 Map Filters NONE Filters NONE Steam 1 RUN: c2314544-3009-45ce-85de-6dbab0eea4c4